lending/lending_fUSD_20250210
["ID","MTS","AMOUNT","RATE_DAILY","PERIOD"]
[352573475,1739175043598,-4000.0,0.0001043,2]
[352573477,1739175043609,-899.0,0.00010437,2]
[352573479,1739175043619,-899.0,0.00010465,2]
[352573481,1739175043628,-150.99,0.00010475,2]
[352573483,1739175043638,-999.99,0.00010475,2]
[352573485,1739175043648,-150.99,0.00010475,2]
[352573487,1739175043658,-1878.09,0.00010475,2]
[352573489,1739175043668,-299.99,0.00010475,2]
[352573491,1739175043677,-499.99,0.00010475,2]
[352573493,1739175043687,-6607.67,0.00010475,2]
[352573495,1739175043697,-9999.99,0.00010475,2]
[352573497,1739175043707,-899.0,0.00010492,2]
[352573499,1739175043717,-1499.99999999,0.000105,2]
[352573501,1739175043727,-899.0,0.0001052,2]
[352573503,1739175043737,-899.0,0.00010547,2]
[352573506,1739175043747,-500.0,0.00010547,2]
[352573508,1739175043756,-703.99,0.00010547,2]
[352573509,1739175043765,-500.0,0.00010547,2]
[352573512,1739175043776,-500.0,0.00010547,2]
[352573514,1739175043788,-500.0,0.00010547,2]
[352573516,1739175043800,-500.0,0.00010547,2]
[352573518,1739175043809,-289.68,0.00010547,2]
[352573520,1739175043818,-500.0,0.00010547,2]
[352573522,1739175043828,-500.0,0.00010547,2]
[352573524,1739175043839,-252.04,0.00010547,2]
[352573526,1739175043848,-500.0,0.00010547,2]
[352573528,1739175043858,-500.0,0.00010547,2]
[352573530,1739175043868,-500.0,0.00010547,2]
[352573532,1739175043879,-660.99,0.00010547,2]
[352573534,1739175043891,-500.0,0.00010547,2]
[352573535,1739175043900,-710.76,0.00010547,2]
[352573536,1739175043910,-500.0,0.00010547,2]
[352573537,1739175043919,-500.0,0.00010547,2]
[352573538,1739175043929,-724.76,0.00010547,2]
[352573539,1739175043938,-500.0,0.00010547,2]
[352573540,1739175043948,-899.0,0.00010574,2]
[352573541,1739175043958,-899.0,0.00010602,2]
[352573542,1739175043968,-899.0,0.00010629,2]
[352573543,1739175043978,-905.9304641,0.00010657,2]
[352573545,1739175043989,-183.29729306,0.00010684,2]
[352573547,1739175043998,-703.99,0.00010684,2]
[352573549,1739175044008,-500.0,0.00010684,2]
[352573551,1739175044018,-500.0,0.00010684,2]
[352573553,1739175044028,-500.0,0.00010684,2]
[352573555,1739175044039,-500.0,0.00010684,2]
[352573557,1739175044049,-500.0,0.00010684,2]
[352573558,1739175044059,-500.0,0.00010684,2]
[352573560,1739175044068,-500.0,0.00010684,2]
[352573562,1739175044078,-500.0,0.00010684,2]
[352573564,1739175044088,-500.0,0.00010684,2]
[352573566,1739175044098,-660.99,0.00010684,2]
[352573568,1739175044107,-500.0,0.00010684,2]
[352573570,1739175044117,-710.76,0.00010684,2]
[352573572,1739175044126,-500.0,0.00010684,2]
[352573574,1739175044136,-500.0,0.00010684,2]
[352573576,1739175044145,-724.76,0.00010684,2]
[352573578,1739175044155,-500.0,0.00010684,2]
[352573580,1739175044164,-500.18239216,0.00010721,2]
[352573582,1739175044174,-247.0,0.00010736,2]
[352573584,1739175044184,-4000.0,0.0001075,2]
[352573586,1739175044193,-703.99,0.00010821,2]
[352573588,1739175044202,-500.0,0.00010821,2]
[352573590,1739175044211,-500.0,0.00010821,2]
[352573592,1739175044221,-500.0,0.00010821,2]
[352573594,1739175044230,-500.0,0.00010821,2]
[352573596,1739175044240,-500.0,0.00010821,2]
[352573598,1739175044249,-500.0,0.00010821,2]
[352573600,1739175044258,-500.0,0.00010821,2]
[352573602,1739175044267,-500.0,0.00010821,2]
[352573604,1739175044276,-500.0,0.00010821,2]
[352573606,1739175044286,-660.99,0.00010821,2]
[352573608,1739175044295,-151.0,0.00010821,2]
[352573610,1739175044305,-500.0,0.00010821,2]
[352573612,1739175044314,-710.76,0.00010821,2]
[352573614,1739175044322,-500.0,0.00010821,2]
[352573616,1739175044332,-500.0,0.00010821,2]
[352573618,1739175044341,-724.76,0.00010821,2]
[352573620,1739175044350,-500.0,0.00010821,2]
[352573622,1739175044359,-6001.48246202,0.0001088,2]
[352573624,1739175044368,-151.0,0.0001088,2]
[352573626,1739175044377,-179.315263,0.000109,2]
[352573628,1739175044387,-179.315263,0.000109,2]
[352573630,1739175044397,-173.61200866,0.000109,2]
[352573632,1739175044405,-61704.92771013,0.000109,2]
[352573633,1739175044414,-703.99,0.00010958,2]
[352573635,1739175044424,-500.0,0.00010958,2]
[352573637,1739175044433,-500.0,0.00010958,2]
[352573640,1739175044443,-500.0,0.00010958,2]
[352573641,1739175044452,-500.0,0.00010958,2]
[352573644,1739175044462,-500.0,0.00010958,2]
[352573645,1739175044472,-500.0,0.00010958,2]
[352573647,1739175044482,-500.0,0.00010958,2]
[352573649,1739175044492,-588.55537855,0.00010958,2]
[352573652,1739175044502,-500.0,0.00010958,2]
[352573654,1739175044512,-660.99,0.00010958,2]
[352573656,1739175044521,-319.52,0.00010958,2]
[352573658,1739175044530,-710.76,0.00010958,2]
[352573660,1739175044543,-500.0,0.00010958,2]
[352573662,1739175044552,-500.0,0.00010958,2]
[352573663,1739175044561,-724.76,0.00010958,2]
[352573666,1739175044571,-500.0,0.00010958,2]
[352573668,1739175044581,-500.0,0.00010959,2]
[352573670,1739175044591,-500.0,0.00010959,2]
[352573672,1739175044601,-500.0,0.00010959,2]
[352573674,1739175044611,-2000.0,0.00010959,2]
[352573676,1739175044621,-2000.0,0.00010959,2]
[352573678,1739175044630,-500.0,0.00010959,2]
[352573680,1739175044641,-200.0,0.00010959,2]
[352573682,1739175044651,-200.0,0.00010959,2]
[352573684,1739175044660,-200.0,0.00010959,2]
[352573686,1739175044670,-200.0,0.00010959,2]
[352573688,1739175044680,-151.0,0.00010959,2]
[352573690,1739175044690,-151.0,0.00010959,2]
[352573692,1739175044699,-151.0,0.00010959,2]
[352573694,1739175044709,-150.0,0.00010959,2]
[352573696,1739175044718,-1000.0,0.00010959,2]
[352573698,1739175044728,-1000.0,0.00010959,2]
[352573700,1739175044738,-1000.0,0.00010959,2]
[352573702,1739175044748,-1000.0,0.00010959,2]
[352573704,1739175044757,-1000.0,0.00010959,2]
[352573706,1739175044767,-1000.0,0.00010959,2]
[352573708,1739175044778,-1000.0,0.00010959,2]
[352573710,1739175044790,-1000.0,0.00010959,2]
[352573711,1739175044801,-1000.0,0.00010959,2]
[352573714,1739175044812,-1000.0,0.00010959,2]
[352573716,1739175044823,-1238.9337108,0.00010999,2]
[352573718,1739175044833,-300.0,0.00010999,2]
[352573720,1739175044842,-300.0,0.00010999,2]
[352573722,1739175044856,-300.0,0.00010999,2]
[352573724,1739175044868,-670.55180549,0.00010999,2]
[352573726,1739175044879,-300.0,0.00010999,2]
[352573728,1739175044888,-672.39239749,0.00010999,2]
[352573730,1739175044899,-300.0,0.00010999,2]
[352573732,1739175044909,-35164.32094921,0.00011,2]
[352573734,1739175044919,-1007.41,0.00011,2]
[352573736,1739175044929,-3574.94178469,0.00011,2]
[352573738,1739175044939,-151.78,0.00011,2]
[352573740,1739175044949,-151.78,0.00011,2]
[352573745,1739175044995,-151.78,0.00011,2]
[352573747,1739175045005,-151.78,0.00011,2]
[352573749,1739175045015,-151.78,0.00011,2]
[352573751,1739175045025,-151.78,0.00011,2]
[352573753,1739175045035,-151.78,0.00011,2]
[352573755,1739175045046,-151.78,0.00011,2]
[352573757,1739175045056,-151.78,0.00011,2]
[352573759,1739175045066,-151.78,0.00011,2]
[352573761,1739175045076,-151.78,0.00011,2]
[352573763,1739175045086,-151.78,0.00011,2]
[352573765,1739175045095,-151.78,0.00011,2]
[352573767,1739175045105,-151.78,0.00011,2]
[352573769,1739175045114,-151.78,0.00011,2]
[352573771,1739175045124,-151.78,0.00011,2]
[352573773,1739175045133,-151.78,0.00011,2]
[352573775,1739175045143,-151.78,0.00011,2]
[352573777,1739175045152,-151.78,0.00011,2]
[352573779,1739175045161,-151.78,0.00011,2]
[352573781,1739175045172,-4000.0,0.0001106,2]
[352573783,1739175045183,-703.99,0.00011095,2]
[352573785,1739175045192,-500.0,0.00011095,2]
[352573787,1739175045202,-500.0,0.00011095,2]
[352573789,1739175045211,-500.0,0.00011095,2]
[352573791,1739175045221,-500.0,0.00011095,2]
[352573793,1739175045229,-500.0,0.00011095,2]
[352573795,1739175045238,-500.0,0.00011095,2]
[352573797,1739175045248,-500.0,0.00011095,2]
[352573799,1739175045257,-500.0,0.00011095,2]
[352573801,1739175045266,-660.99,0.00011095,2]
[352573803,1739175045276,-710.76,0.00011095,2]
[352573805,1739175045286,-500.0,0.00011095,2]
[352573807,1739175045297,-500.0,0.00011095,2]
[352573809,1739175045307,-724.76,0.00011095,2]
[352573812,1739175045316,-500.0,0.00011095,2]
[352573814,1739175045325,-12921.16989088,0.00011099,2]
[352573815,1739175045335,-12921.16989088,0.00011099,2]
[352573818,1739175045345,-1132.65944427,0.00011099,2]
[352573819,1739175045355,-1132.65944423,0.00011099,2]
[352573821,1739175045364,-179.315263,0.00011099,2]
[352573823,1739175045374,-179.315263,0.00011099,2]
[352573825,1739175045384,-152.016373,0.00011099,2]
[352573827,1739175045393,-151.0,0.00011099,2]
[352573829,1739175045405,-151.0,0.00011099,2]
[352573831,1739175045414,-1000.0,0.00011119,2]
[352573833,1739175045423,-211.24,0.00011139,2]
[352573835,1739175045433,-1200.0,0.00011232,2]
[352573837,1739175045442,-488.8478405,0.00011232,2]
[352573839,1739175045451,-703.99,0.00011232,2]
[352573841,1739175045460,-500.0,0.00011232,2]
[352573843,1739175045469,-500.0,0.00011232,2]
[352573845,1739175045479,-405.25609744,0.00011232,2]
[352573846,1739175045488,-500.0,0.00011232,2]
[352573848,1739175045498,-500.0,0.00011232,2]
[352573851,1739175045508,-500.0,0.00011232,2]
[352573853,1739175045519,-500.0,0.00011232,2]
[352573855,1739175045529,-500.0,0.00011232,2]
[352573858,1739175045539,-660.99,0.00011232,2]
[352573859,1739175045549,-710.76,0.00011232,2]
[352573862,1739175045559,-500.0,0.00011232,2]
[352573864,1739175045569,-500.0,0.00011232,2]
[352573866,1739175045579,-724.76,0.00011232,2]
[352573867,1739175045588,-152.0,0.00011294,3]
[352573870,1739175045597,-1085.59,0.000113,2]
[352573873,1739175045607,-703.99,0.00011369,2]
[352573875,1739175045617,-500.0,0.00011369,2]
[352573876,1739175045627,-155.97752397,0.00011369,2]
[352573878,1739175045636,-500.0,0.00011369,2]
[352573881,1739175045646,-500.0,0.00011369,2]
[352573885,1739175045657,-500.0,0.00011369,2]
[352573887,1739175045667,-500.0,0.00011369,2]
[352573890,1739175045677,-500.0,0.00011369,2]
[352573892,1739175045688,-660.99,0.00011369,2]
[352573894,1739175045698,-710.76,0.00011369,2]
[352573897,1739175045707,-500.0,0.00011369,2]
[352573899,1739175045718,-500.0,0.00011369,2]
[352573902,1739175045728,-724.76,0.00011369,2]
[352573905,1739175045738,-4000.0,0.0001138,2]
[352573908,1739175045748,-162.06627148,0.00011452,2]
[352573912,1739175045759,-277.02,0.00011472,2]
[352573915,1739175045769,-152.0,0.00011493,4]
[352573917,1739175045781,-703.99,0.00011506,2]
[352573920,1739175045792,-500.0,0.00011506,2]
[352573922,1739175045802,-500.0,0.00011506,2]
[352573925,1739175045812,-500.0,0.00011506,2]
[352573928,1739175045822,-500.0,0.00011506,2]
[352573931,1739175045832,-500.0,0.00011506,2]
[352573934,1739175045843,-500.0,0.00011506,2]
[352573938,1739175045853,-660.99,0.00011506,2]
[352573941,1739175045862,-710.76,0.00011506,2]
[352573943,1739175045872,-500.0,0.00011506,2]
[352573946,1739175045883,-500.0,0.00011506,2]
[352573949,1739175045892,-724.76,0.00011506,2]
[352573952,1739175045902,-231.33,0.00011507,2]
[352573955,1739175045911,-200.83621461,0.00011533,2]
[352573958,1739175045920,-703.99,0.00011643,2]
[352573961,1739175045930,-500.0,0.00011643,2]
[352573964,1739175045939,-500.0,0.00011643,2]
[352573967,1739175045949,-500.0,0.00011643,2]
[352573970,1739175045959,-198.15120747,0.00011643,2]
[352573973,1739175045968,-500.0,0.00011643,2]
[352573976,1739175045979,-500.0,0.00011643,2]
[352573980,1739175045989,-660.99,0.00011643,2]
[352573984,1739175046000,-710.76,0.00011643,2]
[352573987,1739175046009,-250.21420521,0.00011643,2]
[352573990,1739175046019,-500.0,0.00011643,2]
[352573992,1739175046029,-724.76,0.00011643,2]
[352573994,1739175046039,-152.0,0.00011692,5]
[352573998,1739175046050,-3708.40573326,0.00011698,2]
[352574001,1739175046059,-173.61200865,0.000117,2]
[352574005,1739175046070,-703.99,0.0001178,2]
[352574007,1739175046079,-500.0,0.0001178,2]
[352574010,1739175046088,-487.39687686,0.0001178,2]
[352574013,1739175046098,-500.0,0.0001178,2]
[352574015,1739175046107,-500.0,0.0001178,2]
[352574017,1739175046116,-500.0,0.0001178,2]
[352574019,1739175046126,-660.99,0.0001178,2]
[352574021,1739175046135,-710.76,0.0001178,2]
[352574023,1739175046144,-500.0,0.0001178,2]
[352574025,1739175046153,-724.76,0.0001178,2]
[352574027,1739175046162,-1132.65944423,0.00011877,2]
[352574029,1739175046171,-12921.16989088,0.00011877,2]
[352574031,1739175046181,-152.0,0.00011891,6]
[352574033,1739175046190,-703.99,0.00011917,2]
[352574035,1739175046199,-500.0,0.00011917,2]
[352574037,1739175046209,-500.0,0.00011917,2]
[352574039,1739175046219,-591.05847294,0.00011917,2]
[352574041,1739175046228,-341.42732305,0.00011917,2]
[352574043,1739175046237,-660.99,0.00011917,2]
[352574045,1739175046246,-710.76,0.00011917,2]
[352574047,1739175046255,-395.79098535,0.00011917,2]
[352574049,1739175046265,-724.76,0.00011917,2]
[352574051,1739175046274,-1500.0,0.00012,2]
[352574053,1739175046283,-2372.35178412,0.00012,4]
[352574055,1739175046294,-300.0,0.00012054,2]
[352574057,1739175046304,-300.0,0.00012054,2]
[352574059,1739175046313,-300.0,0.00012054,2]
[352574061,1739175046323,-300.0,0.00012054,2]
[352574063,1739175046332,-703.99,0.00012054,2]
[352574065,1739175046342,-506.71685657,0.00012054,2]
[352574067,1739175046351,-500.0,0.00012054,2]
[352574069,1739175046360,-660.99,0.00012054,2]
[352574071,1739175046370,-710.76,0.00012054,2]
[352574073,1739175046379,-724.76,0.00012054,2]
[352574075,1739175046388,-45386.58,0.00012055,2]
[352574077,1739175046398,-179.315263,0.00012055,2]
[352574079,1739175046407,-179.315263,0.00012055,2]
[352574081,1739175046416,-151.0,0.00012055,2]
[352574083,1739175046427,-151.0,0.00012055,2]
[352574085,1739175046437,-152.0,0.0001209,7]
[352574087,1739175046446,-703.99,0.00012191,2]
[352574088,1739175046455,-500.0,0.00012191,2]
[352574089,1739175046464,-660.99,0.00012191,2]
[352574090,1739175046473,-710.76,0.00012191,2]
[352574091,1739175046482,-724.76,0.00012191,2]
[352574092,1739175046491,-1000.0,0.00012231,2]
[352574093,1739175046500,-211.24,0.00012253,2]
[352574094,1739175046509,-152.0,0.00012289,8]
[352574095,1739175046518,-502.635523,0.0001232,2]
[352574096,1739175046526,-329.2869322,0.0001232,2]
[352574097,1739175046534,-300.0,0.00012328,2]
[352574099,1739175046544,-300.0,0.00012328,2]
[352574101,1739175046553,-300.0,0.00012328,2]
[352574103,1739175046563,-300.0,0.00012328,2]
[352574105,1739175046572,-500.0,0.00012328,2]
[352574107,1739175046583,-703.99,0.00012328,2]
[352574109,1739175046592,-534.20192172,0.00012328,2]
[352574111,1739175046602,-660.99,0.00012328,2]
[352574113,1739175046611,-710.76,0.00012328,2]
[352574114,1739175046620,-724.76,0.00012328,2]
[352574115,1739175046629,-300.0,0.00012328,2]
[352574117,1739175046639,-300.0,0.00012328,2]
[352574118,1739175046648,-300.0,0.00012328,2]
[352574119,1739175046659,-151.0,0.00012329,2]
[352574120,1739175046668,-151.0,0.00012329,2]
[352574121,1739175046678,-151.0,0.00012329,2]
[352574122,1739175046688,-151.0,0.00012329,2]
[352574123,1739175046699,-151.0,0.00012329,2]
[352574125,1739175046709,-151.0,0.00012329,2]
[352574126,1739175046718,-396.356462,0.00012329,2]
[352574127,1739175046727,-396.356462,0.00012329,2]
[352574128,1739175046737,-396.356462,0.00012329,2]
[352574129,1739175046746,-396.356462,0.00012329,2]
[352574131,1739175046755,-151.0,0.00012329,2]
[352574132,1739175046765,-269.806033,0.00012329,2]
[352574133,1739175046775,-151.0,0.00012329,2]
[352574134,1739175046784,-151.0,0.00012329,2]
[352574136,1739175046797,-151.0,0.00012329,2]
[352574137,1739175046806,-151.159084,0.00012329,2]
[352574138,1739175046816,-250.138627,0.00012329,2]
[352574139,1739175046826,-151.0,0.00012329,2]
[352574140,1739175046837,-151.0,0.00012329,2]
[352574141,1739175046847,-152.917297,0.00012329,2]
[352574142,1739175046856,-151.0,0.00012329,2]
[352574143,1739175046866,-151.0,0.00012329,2]
[352574144,1739175046877,-204.053938,0.00012329,2]
[352574145,1739175046886,-208.175429,0.00012329,2]
[352574146,1739175046897,-223.054,0.00012329,2]
[352574147,1739175046907,-223.054,0.00012329,2]
[352574148,1739175046916,-223.054,0.00012329,2]
[352574149,1739175046926,-223.054,0.00012329,2]
[352574150,1739175046936,-223.054,0.00012329,2]
[352574151,1739175046946,-223.054,0.00012329,2]
[352574152,1739175046956,-151.0,0.00012329,2]
[352574153,1739175046965,-151.0,0.00012329,2]
[352574154,1739175046975,-151.0,0.00012329,2]
[352574155,1739175046984,-151.0,0.00012329,2]
[352574156,1739175046994,-183.112009,0.00012329,2]
[352574157,1739175047003,-164.0,0.00012329,2]
[352574159,1739175047013,-164.0,0.00012329,2]
[352574160,1739175047023,-164.0,0.00012329,2]
[352574161,1739175047032,-164.0,0.00012329,2]
[352574162,1739175047044,-164.0,0.00012329,2]
[352574163,1739175047054,-164.0,0.00012329,2]
[352574164,1739175047064,-164.0,0.00012329,2]
[352574165,1739175047074,-164.0,0.00012329,2]
[352574166,1739175047083,-151.0,0.00012329,2]
[352574167,1739175047093,-151.0,0.00012329,2]
[352574168,1739175047104,-151.0,0.00012329,2]
[352574169,1739175047113,-151.0,0.00012329,2]
[352574171,1739175047123,-151.0,0.00012329,2]
[352574173,1739175047132,-151.0,0.00012329,2]
[352574175,1739175047143,-151.0,0.00012329,2]
[352574176,1739175047153,-151.0,0.00012329,2]
[352574177,1739175047162,-290.385249,0.00012329,2]
[352574178,1739175047172,-290.385249,0.00012329,2]
[352574179,1739175047182,-290.385249,0.00012329,2]
[352574180,1739175047192,-290.385249,0.00012329,2]
[352574181,1739175047202,-290.385249,0.00012329,2]
[352574182,1739175047212,-290.385249,0.00012329,2]
[352574183,1739175047222,-290.385249,0.00012329,2]
[352574184,1739175047232,-290.385249,0.00012329,2]
[352574185,1739175047241,-151.0,0.00012329,2]
[352574186,1739175047251,-151.0,0.00012329,2]
[352574188,1739175047261,-280.907553,0.00012329,2]
[352574190,1739175047271,-151.0,0.00012329,2]
[352574191,1739175047280,-280.907553,0.00012329,2]
[352574192,1739175047292,-280.907553,0.00012329,2]
[352574193,1739175047303,-151.0,0.00012329,2]
[352574194,1739175047313,-280.907553,0.00012329,2]
[352574195,1739175047323,-151.082169,0.00012329,2]
[352574196,1739175047333,-151.0,0.00012329,2]
[352574197,1739175047342,-151.0,0.00012329,2]
[352574198,1739175047351,-151.0,0.00012329,2]
[352574199,1739175047361,-151.0,0.00012329,2]
[352574200,1739175047370,-151.0,0.00012329,2]
[352574201,1739175047379,-151.0,0.00012329,2]
[352574202,1739175047389,-151.0,0.00012329,2]
[352574203,1739175047398,-151.0,0.00012329,2]
[352574204,1739175047407,-151.0,0.00012329,2]
[352574205,1739175047417,-151.0,0.00012329,2]
[352574206,1739175047427,-271.784973,0.00012329,2]
[352574207,1739175047442,-151.0,0.00012329,2]
[352574208,1739175047451,-277.311398,0.00012329,2]
[352574209,1739175047461,-151.0,0.00012329,2]
[352574210,1739175047471,-151.0,0.00012329,2]
[352574211,1739175047480,-151.0,0.00012329,2]
[352574212,1739175047490,-151.0,0.00012329,2]
[352574213,1739175047500,-151.0,0.00012329,2]
[352574214,1739175047510,-151.0,0.00012329,2]
[352574215,1739175047519,-151.0,0.00012329,2]
[352574216,1739175047528,-151.0,0.00012329,2]
[352574217,1739175047539,-151.0,0.00012329,2]
[352574218,1739175047553,-151.0,0.00012329,2]
[352574219,1739175047563,-151.361718,0.00012329,2]
[352574220,1739175047573,-151.0,0.00012329,2]
[352574221,1739175047583,-151.0,0.00012329,2]
[352574222,1739175047593,-249.405579,0.00012329,2]
[352574223,1739175047603,-151.0,0.00012329,2]
[352574224,1739175047614,-151.0,0.00012329,2]
[352574225,1739175047624,-151.0,0.00012329,2]
[352574226,1739175047634,-152.366971,0.00012329,2]
[352574227,1739175047644,-151.0,0.00012329,2]
[352574228,1739175047655,-151.0,0.00012329,2]
[352574229,1739175047665,-151.0,0.00012329,2]
[352574230,1739175047675,-151.0,0.00012329,2]
[352574231,1739175047685,-206.246257,0.00012329,2]
[352574232,1739175047695,-175.102282,0.00012329,2]
[352574233,1739175047706,-151.0,0.00012329,2]
[352574234,1739175047716,-151.0,0.00012329,2]
[352574235,1739175047726,-151.0,0.00012329,2]
[352574236,1739175047736,-151.0,0.00012329,2]
[352574237,1739175047746,-151.0,0.00012329,2]
[352574238,1739175047755,-151.0,0.00012329,2]
[352574239,1739175047766,-151.0,0.00012329,2]
[352574240,1739175047775,-151.0,0.00012329,2]
[352574241,1739175047790,-151.0,0.00012329,2]
[352574242,1739175047801,-151.0,0.00012329,2]
[352574243,1739175047811,-151.0,0.00012329,2]
[352574244,1739175047826,-151.0,0.00012329,2]
[352574245,1739175047836,-151.0,0.00012329,2]
[352574246,1739175047846,-151.263621,0.00012329,2]
[352574247,1739175047857,-151.0,0.00012329,2]
[352574248,1739175047868,-151.0,0.00012329,2]
[352574249,1739175047878,-151.0,0.00012329,2]
[352574250,1739175047888,-282.540003,0.00012329,2]
[352574251,1739175047898,-343.083804,0.00012329,2]
[352574252,1739175047909,-343.083804,0.00012329,2]
[352574253,1739175047920,-343.083804,0.00012329,2]
[352574254,1739175047931,-343.083804,0.00012329,2]
[352574255,1739175047942,-343.083804,0.00012329,2]
[352574256,1739175047954,-343.083804,0.00012329,2]
[352574257,1739175047965,-343.083804,0.00012329,2]
[352574258,1739175047975,-343.083804,0.00012329,2]
[352574259,1739175047985,-151.0,0.00012329,2]
[352574260,1739175047995,-151.0,0.00012329,2]
[352574261,1739175048006,-283.350336,0.00012329,2]
[352574262,1739175048017,-204.922804,0.00012329,2]
[352574263,1739175048028,-204.922804,0.00012329,2]
[352574264,1739175048040,-204.922804,0.00012329,2]
[352574265,1739175048051,-204.922804,0.00012329,2]
[352574266,1739175048063,-204.922804,0.00012329,2]
[352574267,1739175048074,-204.922804,0.00012329,2]
[352574268,1739175048086,-204.922804,0.00012329,2]
[352574269,1739175048096,-204.922804,0.00012329,2]
[352574270,1739175048109,-204.922804,0.00012329,2]
[352574271,1739175048119,-204.922804,0.00012329,2]
[352574272,1739175048130,-393.554387,0.00012329,2]
[352574273,1739175048140,-393.554387,0.00012329,2]
[352574274,1739175048151,-393.554387,0.00012329,2]
[352574275,1739175048163,-393.554387,0.00012329,2]
[352574276,1739175048174,-393.554387,0.00012329,2]
[352574277,1739175048189,-258.507192,0.00012329,2]
[352574278,1739175048204,-151.0,0.00012329,2]
[352574279,1739175048215,-151.0,0.00012329,2]
[352574280,1739175048227,-151.0,0.00012329,2]
[352574281,1739175048237,-151.0,0.00012329,2]
[352574282,1739175048247,-152.608964,0.00012329,2]
[352574283,1739175048258,-151.0,0.00012329,2]
[352574284,1739175048268,-151.0,0.00012329,2]
[352574285,1739175048280,-151.0,0.00012329,2]
[352574286,1739175048290,-247.882322,0.00012329,2]
[352574287,1739175048301,-151.0,0.00012329,2]
[352574288,1739175048312,-151.0,0.00012329,2]
[352574289,1739175048323,-151.0,0.00012329,2]
[352574290,1739175048334,-151.0,0.00012329,2]
[352574291,1739175048344,-151.0,0.00012329,2]
[352574292,1739175048354,-395.938598,0.00012329,2]
[352574293,1739175048366,-395.938598,0.00012329,2]
[352574294,1739175048377,-395.938598,0.00012329,2]
[352574295,1739175048388,-395.938598,0.00012329,2]
[352574296,1739175048399,-395.938598,0.00012329,2]
[352574297,1739175048410,-395.938598,0.00012329,2]
[352574298,1739175048422,-395.938598,0.00012329,2]
[352574299,1739175048432,-395.938598,0.00012329,2]
[352574300,1739175048443,-395.938598,0.00012329,2]
[352574301,1739175048454,-395.938598,0.00012329,2]
[352574302,1739175048464,-151.0,0.00012329,2]
[352574303,1739175048475,-151.0,0.00012329,2]
[352574304,1739175048485,-151.0,0.00012329,2]
[352574305,1739175048495,-151.0,0.00012329,2]
[352574306,1739175048506,-151.0,0.00012329,2]
[352574307,1739175048518,-151.0,0.00012329,2]
[352574308,1739175048529,-151.0,0.00012329,2]
[352574309,1739175048540,-151.0,0.00012329,2]
[352574310,1739175048550,-151.35986,0.00012329,2]
[352574311,1739175048561,-151.0,0.00012329,2]
[352574312,1739175048572,-151.0,0.00012329,2]
[352574313,1739175048582,-151.0,0.00012329,2]
[352574314,1739175048593,-151.0,0.00012329,2]
[352574315,1739175048604,-151.0,0.00012329,2]
[352574316,1739175048615,-151.0,0.00012329,2]
[352574317,1739175048626,-151.0,0.00012329,2]